[Event "FRA-chT Top 12 2019"]
[Site "Brest"]
[Date "2019.05.25"]
[Round "8.8"]
[White "Skripchenko, Almira"]
[Black "De Seroux, Camille"]
[Result "0-1"]
[ECO "A04"]
[WhiteElo "2406"]
[BlackElo "2143"]
[Annotator "NA"]
[PlyCount "150"]
[EventDate "2019.05.18"]
[EventType "team-tourn"]
[EventCountry "FRA"]
[SourceTitle "playchess.com"]
[Source "ChessBase"]
[SourceQuality "1"]
[TimeControl "40/5400+30:1800+30"]

1. Nf3 {[%emt 0:00:00]} c5 {[%emt 0:00:00]} 2. e3 {[%emt 0:00:00]} Nf6 {[%emt 0:07:23]} 3. d4 {[%emt 0:00:36]} e6 {[%emt 0:01:09]} 4. Bd3 {[%emt 0:01:16]} Be7 {[%emt 0:02:21]} 5. O-O {[%emt 0:00:23]} O-O {[%emt 0:00:56]} 6. c4 {[%emt 0:04:19]} cxd4 {[%emt 0:06:53]} 7. exd4 {[%emt 0:00:18]} d5 {[%emt 0:01:01]} 8. Nc3 {[%emt 0:00:24]} b6 {[%emt 0:04:26]} 9. cxd5 {[%emt 0:04:21]} Nxd5 {[%emt 0:00:26]} 10. Nxd5 {[%emt 0:04:08]} exd5 {[%emt 0:07:20]} 11. Ne5 {[%emt 0:00:32]} Ba6 {[%emt 0:25:14]} 12. Nc6 {[%emt 0:17:49]} Qd6 {[%emt 0:05:01]} 13. Nxe7+ {[%emt 0:00:51]} Qxe7 {[%emt 0:00:06]} 14. Re1 {[%emt 0:00:17]} Qf6 {[%emt 0:05:13]} 15. Bc2 {[%emt 0:04:29]} Nc6 {[%emt 0:01:26]} 16. Be3 {[%emt 0:04:30]} Rac8 {[%emt 0:05:24]} 17. Qg4 {[%emt 0:07:44]} h6 {[%emt 0:07:37]} 18. Qf5 {[%emt 0:05:12]} Qxf5 {[%emt 0:00:57]} 19. Bxf5 {[%emt 0:00:05]} Rcd8 {[%emt 0:03:08]} 20. Rac1 {[%emt 0:01:57]} Bc8 {[%emt 0:03:06]} 21. Bd3 {[%emt 0:03:47]} Bd7 {[%emt 0:04:27]} 22. a3 {[%emt 0:00:53]} Rfe8 {[%emt 0:01:37]} 23. h3 {[%emt 0:04:55]} Re7 {[%emt 0:01:58]} 24. b4 {[%emt 0:02:07]} Rde8 {[%emt 0:01:22]} 25. Red1 {[%emt 0:00:06]} Nd8 {[%emt 0:02:20]} 26. Rc7 {[%emt 0:01:14]} Bc6 {[%emt 0:01:59]} 27. Rxe7 {[%emt 0:02:48]} Rxe7 {[%emt 0:00:00]} 28. Rc1 {[%emt 0:00:08]} Bb7 {[%emt 0:00:00]} 29. b5 {[%emt 0:06:16]} Ne6 {[%emt 0:00:24]} 30. a4 {[%emt 0:00:05]} Kf8 {[%emt 0:00:52]} 31. Bf5 {[%emt 0:08:31]} Ke8 {[%emt 0:00:26]} 32. g4 {[%emt 0:04:12]} Kd8 {[%emt 0:00:29]} 33. Bd3 {[%emt 0:00:54]} Rc7 {[%emt 0:00:34]} 34. Rd1 {[%emt 0:01:22]} Rc3 {[%emt 0:00:40]} 35. f4 {[%emt 0:00:12]} Ra3 {[%emt 0:00:20]} 36. f5 {[%emt 0:01:13]} Ng5 {[%emt 0:00:17]} 37. h4 {[%emt 0:00:57]} Ne4 {[%emt 0:00:31]} 38. Kg2 {[%emt 0:01:44]} Rxa4 {[%emt 0:00:22]} 39. Kf3 {[%emt 0:01:36]} Ra3 {[%emt 0:00:55]} 40. g5 {[%emt 0:01:22]} hxg5 {[%emt 0:00:08]} 41. hxg5 {[%emt 0:30:07]} Bc8 {[%emt 0:16:03]} 42. Kf4 {[%emt 0:00:00]} Nd6 {[%emt 0:05:51]} 43. Bc1 {[%emt 0:00:00]} Ra1 {[%emt 0:04:16]} 44. Rh1 {[%emt 0:00:00]} Bd7 {[%emt 0:02:41]} 45. Ke5 {[%emt 0:00:00]} Nxb5 {[%emt 0:02:34]} 46. Kxd5 {[%emt 0:00:00]} Nc7+ {[%emt 0:00:45]} 47. Ke5 {[%emt 0:00:00]} Ra5+ {[%emt 0:00:20]} 48. Kf4 {[%emt 0:00:16]} Nd5+ {[%emt 0:00:21]} 49. Kf3 {[%emt 0:00:31]} Nb4 {[%emt 0:01:33]} 50. Rh8+ {[%emt 0:00:14]} Ke7 {[%emt 0:01:08]} 51. Bd2 {[%emt 0:02:45]} Ra4 {[%emt 0:00:08]} 52. Be4 {[%emt 0:01:02]} Nc6 {[%emt 0:00:16]} 53. Bxc6 {[%emt 0:01:42]} Bxc6+ {[%emt 0:00:03]} 54. Ke3 {[%emt 0:00:06]} Ra3+ {[%emt 0:01:02]} 55. Ke2 {[%emt 0:00:05]} Ra2 {[%emt 0:00:33]} 56. Rg8 {[%emt 0:01:58]} Bd7 {[%emt 0:00:20]} 57. Rxg7 {[%emt 0:00:24]} Bxf5 {[%emt 0:00:07]} 58. Rg8 {[%emt 0:00:03]} Ra4 {[%emt 0:01:15]} 59. Ke3 {[%emt 0:00:36]} Bg6 {[%emt 0:00:13]} 60. Rb8 {[%emt 0:00:16]} Ke6 {[%emt 0:00:32]} 61. Rd8 {[%emt 0:00:43]} Ra3+ {[%emt 0:00:17]} 62. Ke2 {[%emt 0:00:08]} Bd3+ {[%emt 0:00:27]} 63. Kf2 {[%emt 0:00:14]} Bc4 {[%emt 0:01:12]} 64. Bb4 {[%emt 0:02:24]} Rd3 {[%emt 0:00:39]} 65. Bf8 {[%emt 0:01:21]} Kf5 {[%emt 0:00:24]} 66. Be7 {[%emt 0:00:18]} Kg4 {[%emt 0:00:28]} 67. Ra8 {[%emt 0:01:07]} Rd2+ {[%emt 0:00:15]} 68. Kg1 {[%emt 0:00:19]} Rd1+ {[%emt 0:00:41]} 69. Kf2 {[%emt 0:00:10]} Rd2+ {[%emt 0:00:01]} 70. Kg1 {[%emt 0:00:05]} a5 {[%emt 0:01:09]} 71. Bd8 {[%emt 0:00:18]} Rd1+ {[%emt 0:00:36]} 72. Kf2 {[%emt 0:00:06]} Rf1+ {[%emt 0:00:29]} 73. Kg2 {[%emt 0:01:21]} Rf5 {[%emt 0:00:28]} 74. Kh2 {[%emt 0:00:30]} Bd5 {[%emt 0:00:24]} 75. Rb8 {[%emt 0:00:38]} Rf1 {[%emt 0:00:08]} 0-1

[Event "FRA-chT Top 12 2019"]
[Site "Brest"]
[Date "2019.05.25"]
[Round "8.8"]
[White "Riff, Vincent"]
[Black "Fruteau, Sabine"]
[Result "1-0"]
[ECO "A39"]
[WhiteElo "2399"]
[BlackElo "2015"]
[Annotator "NA"]
[PlyCount "79"]
[EventDate "2019.05.18"]
[EventType "team-tourn"]
[EventCountry "FRA"]
[SourceTitle "playchess.com"]
[Source "ChessBase"]
[SourceQuality "1"]
[TimeControl "40/5400+30:1800+30"]

1. Nf3 {[%emt 0:00:00]} Nf6 {[%emt 0:00:05]} 2. g3 {[%emt 0:00:00]} g6 {[%emt 0:00:40]} 3. Bg2 {[%emt 0:00:00]} Bg7 {[%emt 0:00:30]} 4. O-O {[%emt 0:00:00]} O-O {[%emt 0:00:00]} 5. c4 {[%emt 0:00:32]} c5 {[%emt 0:00:00]} 6. Nc3 {[%emt 0:00:42]} Nc6 {[%emt 0:05:02]} 7. d4 {[%emt 0:00:12]} cxd4 {[%emt 0:00:07]} 8. Nxd4 {[%emt 0:00:07]} Nxd4 9. Qxd4 d6 {[%emt 0:00:36]} 10. Rd1 {[%emt 0:04:05]} Qa5 {[%emt 0:07:38]} 11. Qd3 {[%emt 0:05:20]} Rb8 {[%emt 0:13:41]} 12. Nb5 {[%emt 0:08:34]} Ng4 {[%emt 0:15:46]} 13. h3 {[%emt 0:23:04]} Ne5 {[%emt 0:13:21]} 14. Qc2 {[%emt 0:01:33]} Bf5 {[%emt 0:01:34]} 15. e4 {[%emt 0:02:04]} Be6 {[%emt 0:00:10]} 16. Bd2 {[%emt 0:01:26]} Qd8 {[%emt 0:00:20]} 17. b3 {[%emt 0:02:39]} Nc6 {[%emt 0:09:15]} 18. Rac1 {[%emt 0:06:56]} Qd7 {[%emt 0:17:28]} 19. Kh2 {[%emt 0:00:36]} a6 {[%emt 0:03:58]} 20. Nc3 {[%emt 0:00:17]} b5 {[%emt 0:00:39]} 21. Nd5 {[%emt 0:01:31]} Nd4 {[%emt 0:04:49]} 22. Qd3 {[%emt 0:00:32]} f5 {[%emt 0:00:34]} 23. Be3 {[%emt 0:01:13]} fxe4 {[%emt 0:01:08]} 24. Qxe4 {[%emt 0:00:23]} Bxd5 {[%emt 0:02:03]} 25. Qxd5+ {[%emt 0:05:29]} e6 {[%emt 0:00:06]} 26. Qg5 {[%emt 0:00:04]} Nf5 {[%emt 0:00:40]} 27. Bf4 {[%emt 0:06:50]} e5 {[%emt 0:00:11]} 28. Bd2 {[%emt 0:00:37]} Qa7 {[%emt 0:00:57]} 29. Kg1 {[%emt 0:01:21]} Nd4 {[%emt 0:01:29]} 30. Be3 {[%emt 0:00:42]} Kh8 {[%emt 0:00:36]} 31. Qg4 {[%emt 0:00:33]} Qf7 {[%emt 0:00:18]} 32. Bd5 {[%emt 0:01:40]} Qf6 {[%emt 0:00:05]} 33. Kg2 {[%emt 0:00:56]} Qf5 {[%emt 0:01:02]} 34. Qxf5 {[%emt 0:00:15]} Nxf5 {[%emt 0:00:41]} 35. Ba7 {[%emt 0:00:23]} Rbd8 {[%emt 0:00:14]} 36. Bb6 {[%emt 0:01:31]} Rb8 {[%emt 0:00:20]} 37. Ba5 {[%emt 0:01:56]} Nd4 {[%emt 0:01:00]} 38. Bc7 {[%emt 0:00:19]} Rbc8 {[%emt 0:00:19]} 39. Bxd6 {[%emt 0:00:10]} bxc4 {[%emt 0:00:58]} 40. Bxf8 1-0

[Event "FRA-chT Top 12 2019"]
[Site "Brest"]
[Date "2019.05.25"]
[Round "8.8"]
[White "Richard, Emma"]
[Black "Van Hoolandt, Patrick"]
[Result "1/2-1/2"]
[ECO "C65"]
[WhiteElo "2120"]
[BlackElo "2127"]
[Annotator "NA"]
[PlyCount "74"]
[EventDate "2019.05.18"]
[EventType "team-tourn"]
[EventCountry "FRA"]
[SourceTitle "playchess.com"]
[Source "ChessBase"]
[SourceQuality "1"]
[TimeControl "40/5400+30:1800+30"]

1. e4 {[%emt 0:00:00]} e5 {[%emt 0:00:00]} 2. Nf3 {[%emt 0:00:00]} Nc6 {[%emt 0:00:00]} 3. Bb5 {[%emt 0:00:00]} Nf6 {[%emt 0:00:00]} 4. d3 {[%emt 0:00:05]} Bc5 {[%emt 0:00:04]} 5. Nbd2 {[%emt 0:00:14]} Qe7 {[%emt 0:11:06]} 6. Bxc6 {[%emt 0:15:45]} bxc6 {[%emt 0:12:41]} 7. O-O {[%emt 0:02:16]} O-O {[%emt 0:03:09]} 8. h3 {[%emt 0:03:00]} d6 {[%emt 0:08:41]} 9. a4 {[%emt 0:05:04]} a5 {[%emt 0:05:22]} 10. Nc4 {[%emt 0:06:10]} Be6 {[%emt 0:02:57]} 11. Ne3 {[%emt 0:04:24]} Nd7 {[%emt 0:11:12]} 12. Re1 {[%emt 0:15:37]} d5 {[%emt 0:10:11]} 13. Nf1 {[%emt 0:12:33]} h6 {[%emt 0:09:32]} 14. exd5 {[%emt 0:06:10]} cxd5 {[%emt 0:00:02]} 15. d4 {[%emt 0:07:23]} exd4 {[%emt 0:00:07]} 16. Nxd4 {[%emt 0:00:34]} Qh4 {[%emt 0:04:42]} 17. Be3 {[%emt 0:04:02]} Bxd4 {[%emt 0:03:35]} 18. Qxd4 {[%emt 0:00:42]} Qxd4 {[%emt 0:00:08]} 19. Bxd4 {[%emt 0:00:04]} c5 {[%emt 0:00:04]} 20. Be3 {[%emt 0:05:08]} Rfb8 {[%emt 0:01:17]} 21. b3 {[%emt 0:00:43]} d4 {[%emt 0:06:36]} 22. Bf4 {[%emt 0:00:25]} Rb4 {[%emt 0:01:02]} 23. Bd2 {[%emt 0:01:31]} Rb7 {[%emt 0:00:14]} 24. Ng3 {[%emt 0:00:11]} d3 {[%emt 0:00:49]} 25. cxd3 {[%emt 0:00:41]} Rxb3 {[%emt 0:00:01]} 26. Re3 {[%emt 0:01:34]} Rb2 {[%emt 0:06:27]} 27. Be1 {[%emt 0:03:32]} Nb6 {[%emt 0:01:05]} 28. Ne4 {[%emt 0:01:27]} Nd5 {[%emt 0:01:30]} 29. Rg3 {[%emt 0:00:04]} Nf4 {[%emt 0:00:06]} 30. Rxg7+ {[%emt 0:04:36]} Kxg7 {[%emt 0:00:24]} 31. Bc3+ {[%emt 0:00:02]} Kf8 {[%emt 0:00:19]} 32. Bxb2 {[%emt 0:00:02]} Nxd3 {[%emt 0:00:09]} 33. Ba3 {[%emt 0:01:27]} Rc8 {[%emt 0:01:03]} 34. Nxc5 {[%emt 0:00:55]} Nxc5 {[%emt 0:00:39]} 35. Rc1 {[%emt 0:00:03]} Ke8 {[%emt 0:00:53]} 36. Rxc5 {[%emt 0:00:11]} Rxc5 {[%emt 0:00:15]} 37. Bxc5 {[%emt 0:00:05]} h5 {[%emt 0:00:25]} 1/2-1/2

[Event "FRA-chT Top 12 2019"]
[Site "Brest"]
[Date "2019.05.25"]
[Round "8.8"]
[White "Verot, Melanie"]
[Black "Steil-Antoni, Fiona"]
[Result "1/2-1/2"]
[ECO "A85"]
[WhiteElo "2069"]
[BlackElo "2156"]
[Annotator "NA"]
[PlyCount "55"]
[EventDate "2019.05.18"]
[EventType "team-tourn"]
[EventCountry "FRA"]
[SourceTitle "playchess.com"]
[Source "ChessBase"]
[SourceQuality "1"]
[TimeControl "40/5400+30:1800+30"]

1. d4 {[%emt 0:00:00]} f5 {[%emt 0:00:00]} 2. c4 {[%emt 0:01:41]} Nf6 {[%emt 0:00:00]} 3. Nc3 {[%emt 0:00:56]} e6 {[%emt 0:00:08]} 4. Bg5 {[%emt 0:03:20]} Be7 {[%emt 0:03:55]} 5. e3 {[%emt 0:02:43]} O-O {[%emt 0:02:33]} 6. Bd3 {[%emt 0:02:40]} d6 {[%emt 0:02:05]} 7. Nf3 {[%emt 0:13:24]} Qe8 {[%emt 0:03:06]} 8. O-O {[%emt 0:11:41]} Nc6 {[%emt 0:05:16]} 9. d5 {[%emt 0:07:40]} Ne5 {[%emt 0:02:58]} 10. dxe6 {[%emt 0:11:03]} Nxd3 {[%emt 0:10:18]} 11. Qxd3 {[%emt 0:00:28]} c6 {[%emt 0:08:49]} 12. Nd4 {[%emt 0:05:26]} Qg6 {[%emt 0:10:50]} 13. f4 {[%emt 0:11:03]} Kh8 {[%emt 0:14:18]} 14. Qxf5 {[%emt 0:03:36]} Qe8 {[%emt 0:00:38]} 15. Qd3 {[%emt 0:00:51]} h6 {[%emt 0:02:00]} 16. Rf3 {[%emt 0:03:26]} hxg5 {[%emt 0:02:46]} 17. Rh3+ {[%emt 0:00:12]} Nh5 {[%emt 0:00:23]} 18. g4 {[%emt 0:00:24]} g6 {[%emt 0:01:05]} 19. gxh5 {[%emt 0:01:06]} g4 {[%emt 0:01:57]} 20. Rg3 {[%emt 0:04:27]} gxh5 {[%emt 0:00:02]} 21. Ne4 {[%emt 0:00:51]} c5 {[%emt 0:07:56]} 22. Nb5 {[%emt 0:00:48]} Bxe6 {[%emt 0:02:18]} 23. Nexd6 {[%emt 0:01:09]} Qd7 {[%emt 0:03:23]} 24. Qg6 {[%emt 0:01:31]} h4 {[%emt 0:02:41]} 25. Qh6+ {[%emt 0:04:00]} Kg8 {[%emt 0:00:01]} 26. Qg6+ {[%emt 0:02:21]} Kh8 {[%emt 0:00:02]} 27. Qh6+ {[%emt 0:00:05]} Kg8 {[%emt 0:00:05]} 28. Qg6+ {[%emt 0:00:04]} 1/2-1/2

[Event "FRA-chT Top 12 2019"]
[Site "Brest"]
[Date "2019.05.25"]
[Round "8.8"]
[White "Bolon, Karelle"]
[Black "Monpeurt, Cyrielle"]
[Result "0-1"]
[ECO "C50"]
[WhiteElo "2018"]
[BlackElo "2166"]
[Annotator "NA"]
[PlyCount "108"]
[EventDate "2019.05.18"]
[EventType "team-tourn"]
[EventCountry "FRA"]
[SourceTitle "playchess.com"]
[Source "ChessBase"]
[SourceQuality "1"]
[TimeControl "40/5400+30:1800+30"]

1. e4 {[%emt 0:00:00]} e5 {[%emt 0:00:00]} 2. Nf3 {[%emt 0:00:18]} Nc6 {[%emt 0:00:00]} 3. Bc4 {[%emt 0:01:17]} Bc5 {[%emt 0:00:02]} 4. O-O {[%emt 0:00:24]} Nf6 {[%emt 0:00:24]} 5. d4 {[%emt 0:01:01]} Bxd4 {[%emt 0:01:37]} 6. Nxd4 {[%emt 0:00:30]} Nxd4 {[%emt 0:00:27]} 7. f4 {[%emt 0:00:24]} d6 {[%emt 0:02:46]} 8. fxe5 {[%emt 0:00:39]} dxe5 {[%emt 0:00:07]} 9. Bg5 {[%emt 0:00:47]} Be6 {[%emt 0:05:16]} 10. Na3 {[%emt 0:00:57]} Qe7 {[%emt 0:08:22]} 11. c3 {[%emt 0:03:37]} Bxc4 {[%emt 0:08:50]} 12. Nxc4 {[%emt 0:00:51]} Ne6 {[%emt 0:00:37]} 13. Bxf6 {[%emt 0:01:51]} gxf6 {[%emt 0:00:19]} 14. b4 {[%emt 0:02:29]} Rg8 {[%emt 0:09:20]} 15. Rf2 {[%emt 0:02:00]} Ng5 {[%emt 0:07:18]} 16. Qa4+ {[%emt 0:28:37]} c6 {[%emt 0:05:04]} 17. Re2 {[%emt 0:07:19]} Rd8 {[%emt 0:08:52]} 18. Qxa7 {[%emt 0:09:26]} Qd7 {[%emt 0:00:54]} 19. Qe3 {[%emt 0:05:58]} Qd3 {[%emt 0:08:10]} 20. Qxd3 {[%emt 0:04:42]} Rxd3 {[%emt 0:00:04]} 21. Rc1 {[%emt 0:01:38]} Ke7 {[%emt 0:10:09]} 22. a4 {[%emt 0:05:35]} Nh3+ {[%emt 0:00:42]} 23. Kf1 {[%emt 0:06:48]} Nf4 {[%emt 0:00:14]} 24. Rec2 {[%emt 0:05:38]} Rgd8 {[%emt 0:02:10]} 25. Nb2 {[%emt 0:02:24]} Rd2 {[%emt 0:02:27]} 26. Nc4 {[%emt 0:01:07]} R2d7 {[%emt 0:07:20]} 27. Ne3 {[%emt 0:01:20]} Rd3 {[%emt 0:04:02]} 28. Nf5+ {[%emt 0:00:32]} Ke6 {[%emt 0:01:54]} 29. g3 {[%emt 0:00:27]} Nh3 {[%emt 0:00:04]} 30. Kg2 {[%emt 0:01:28]} Ng5 {[%emt 0:00:04]} 31. Re1 {[%emt 0:00:25]} Rd2+ {[%emt 0:00:54]} 32. Rxd2 {[%emt 0:01:41]} Rxd2+ {[%emt 0:00:03]} 33. Kf1 {[%emt 0:00:57]} Rxh2 {[%emt 0:02:52]} 34. Ng7+ {[%emt 0:01:16]} Kd7 {[%emt 0:00:12]} 35. Rd1+ {[%emt 0:00:42]} Kc8 {[%emt 0:00:41]} 36. Kg1 {[%emt 0:02:03]} Rc2 {[%emt 0:01:11]} 37. b5 {[%emt 0:00:46]} cxb5 {[%emt 0:02:26]} 38. axb5 {[%emt 0:00:05]} Rxc3 {[%emt 0:00:23]} 39. b6 {[%emt 0:00:40]} Rxg3+ {[%emt 0:01:06]} 40. Kf2 {[%emt 0:00:29]} Rb3 {[%emt 0:00:10]} 41. Nf5 {[%emt 0:04:41]} Nxe4+ {[%emt 0:02:51]} 42. Kg2 {[%emt 0:00:35]} Rxb6 {[%emt 0:01:24]} 43. Ne7+ {[%emt 0:00:23]} Kb8 {[%emt 0:00:10]} 44. Rd8+ {[%emt 0:02:07]} Kc7 {[%emt 0:00:14]} 45. Rh8 {[%emt 0:00:30]} Rb2+ {[%emt 0:00:16]} 46. Kf3 {[%emt 0:00:13]} Ng5+ {[%emt 0:00:22]} 47. Ke3 {[%emt 0:00:50]} Rb3+ {[%emt 0:00:54]} 48. Ke2 {[%emt 0:00:08]} Kd6 {[%emt 0:01:06]} 49. Nf5+ {[%emt 0:03:39]} Kd5 {[%emt 0:00:40]} 50. Rd8+ {[%emt 0:00:30]} Ke4 {[%emt 0:00:12]} 51. Nd6+ {[%emt 0:01:00]} Kf4 {[%emt 0:00:10]} 52. Nc4 {[%emt 0:00:31]} b5 {[%emt 0:00:48]} 53. Nd2 {[%emt 0:00:21]} Re3+ {[%emt 0:00:48]} 54. Kd1 {[%emt 0:00:42]} Nf3 {[%emt 0:00:35]} 0-1

[Event "FRA-chT Top 12 2019"]
[Site "Brest"]
[Date "2019.05.26"]
[Round "9.1"]
[White "Landa, Konstantin"]
[Black "Fedorov, Alexei"]
[Result "1-0"]
[ECO "E94"]
[WhiteElo "2622"]
[BlackElo "2566"]
[Annotator "ChessBase"]
[PlyCount "59"]
[EventDate "2019.05.18"]
[EventType "team-tourn"]
[EventCountry "FRA"]
[SourceTitle "playchess.com"]
[Source "ChessBase"]
[SourceQuality "1"]
[TimeControl "40/5400+30:1800+30"]

1. d4 {[%emt 0:03:30]} Nf6 {[%emt 0:00:00]} 2. c4 {[%emt 0:00:07]} g6 {[%emt 0:00:05]} 3. Nc3 {[%emt 0:02:55]} Bg7 {[%emt 0:00:07]} 4. e4 {[%emt 0:00:11]} d6 {[%emt 0:00:06]} 5. Nf3 {[%emt 0:00:27]} O-O {[%emt 0:00:14]} 6. Be2 {[%emt 0:00:03]} e5 {[%emt 0:02:34]} 7. O-O {[%emt 0:00:36]} Nbd7 {[%emt 0:00:49]} 8. Be3 {[%emt 0:00:55]} Qe7 {[%emt 0:00:07]} 9. Qc2 {[%emt 0:02:10]} c6 {[%emt 0:00:35]} 10. Rfe1 {[%emt 0:17:37]} h6 {[%emt 0:09:47]} 11. h3 {[%emt 0:01:31]} exd4 {[%emt 0:04:14]} 12. Bxd4 {[%emt 0:02:55]} b6 {[%emt 0:02:29]} 13. Bf1 {[%emt 0:04:03]} Ne5 {[%emt 0:00:21]} 14. Nxe5 {[%emt 0:07:47]} dxe5 {[%emt 0:00:07]} 15. Be3 {[%emt 0:00:02]} Nh5 {[%emt 0:16:49]} 16. Rad1 {[%emt 0:05:49]} Nf4 {[%emt 0:09:44]} 17. Qd2 {[%emt 0:12:17]} Be6 {[%emt 0:06:11]} 18. Bxf4 {[%emt 0:06:00]} exf4 {[%emt 0:00:19]} 19. Qxf4 {[%emt 0:00:06]} Qb4 {[%emt 0:00:53]} 20. Rd2 {[%emt 0:02:17]} Rad8 {[%emt 0:05:13]} 21. Red1 {[%emt 0:01:03]} Rxd2 {[%emt 0:03:10]} 22. Rxd2 {[%emt 0:00:51]} Bxc3 {[%emt 0:01:39]} 23. bxc3 {[%emt 0:00:43]} Qxc3 {[%emt 0:01:55]} 24. Rd1 {[%emt 0:07:53]} g5 {[%emt 0:05:17]} 25. Qd6 {[%emt 0:11:47]} c5 {[%emt 0:05:44]} 26. h4 {[%emt 0:00:24]} Qf6 {[%emt 0:03:22]} 27. hxg5 {[%emt 0:04:54]} hxg5 {[%emt 0:00:14]} 28. Qc7 {[%emt 0:01:47]} Kg7 {[%emt 0:07:44]} 29. Qxa7 {[%emt 0:00:01]} Rd8 {[%emt 0:00:24]} 30. e5 {[%emt 0:00:50]} 1-0

[Event "FRA-chT Top 12 2019"]
[Site "Brest"]
[Date "2019.05.26"]
[Round "9.1"]
[White "Nihal Sarin"]
[Black "Stevic, Hrvoje"]
[Result "1-0"]
[ECO "D27"]
[WhiteElo "2598"]
[BlackElo "2580"]
[Annotator "ChessBase"]
[PlyCount "139"]
[EventDate "2019.05.18"]
[EventType "team-tourn"]
[EventCountry "FRA"]
[SourceTitle "playchess.com"]
[Source "ChessBase"]
[SourceQuality "1"]
[TimeControl "40/5400+30:1800+30"]

1. d4 {[%emt 0:00:08]} d5 {[%emt 0:00:00]} 2. c4 {[%emt 0:00:35]} dxc4 {[%emt 0:00:00]} 3. Nf3 {[%emt 0:00:13]} Nf6 {[%emt 0:00:46]} 4. e3 {[%emt 0:00:06]} e6 {[%emt 0:00:23]} 5. Bxc4 {[%emt 0:00:27]} c5 {[%emt 0:00:11]} 6. O-O {[%emt 0:00:30]} a6 {[%emt 0:00:12]} 7. b3 {[%emt 0:00:41]} Nbd7 {[%emt 0:00:31]} 8. Bb2 {[%emt 0:00:37]} Be7 {[%emt 0:00:12]} 9. Nbd2 {[%emt 0:03:06]} O-O {[%emt 0:15:32]} 10. Bd3 {[%emt 0:03:54]} b6 {[%emt 0:01:06]} 11. Qe2 {[%emt 0:01:04]} Bb7 {[%emt 0:00:40]} 12. Rfd1 {[%emt 0:06:56]} cxd4 {[%emt 0:06:52]} 13. Bxd4 {[%emt 0:02:10]} Bc5 {[%emt 0:04:15]} 14. Bb2 {[%emt 0:29:09]} Qe7 {[%emt 0:01:11]} 15. a3 {[%emt 0:02:36]} a5 {[%emt 0:07:54]} 16. Bb5 {[%emt 0:16:19]} Rfd8 {[%emt 0:14:26]} 17. Nc4 {[%emt 0:02:35]} Ne8 {[%emt 0:07:07]} 18. Rac1 {[%emt 0:15:10]} Rac8 {[%emt 0:12:06]} 19. h3 {[%emt 0:00:42]} Ndf6 {[%emt 0:03:28]} 20. Rxd8 {[%emt 0:01:22]} Rxd8 {[%emt 0:01:12]} 21. Nfe5 {[%emt 0:00:18]} Nd6 {[%emt 0:01:42]} 22. Nxa5 {[%emt 0:07:47]} bxa5 {[%emt 0:05:52]} 23. Rxc5 {[%emt 0:00:02]} Nxb5 {[%emt 0:00:06]} 24. Qxb5 {[%emt 0:00:33]} Ne4 {[%emt 0:03:48]} 25. Rc2 {[%emt 0:00:34]} h6 {[%emt 0:09:23]} 26. Bd4 {[%emt 0:02:05]} Bd5 {[%emt 0:01:00]} 27. Nc6 {[%emt 0:01:00]} Qe8 {[%emt 0:00:46]} 28. a4 {[%emt 0:01:14]} Ra8 {[%emt 0:00:45]} 29. f3 {[%emt 0:01:05]} Nd6 {[%emt 0:02:14]} 30. Qc5 {[%emt 0:00:05]} Rc8 31. Qxd6 {[%emt 0:00:12]} Rxc6 {[%emt 0:00:25]} 32. Rxc6 {[%emt 0:01:52]} Qxc6 {[%emt 0:00:59]} 33. Qg3 {[%emt 0:00:21]} e5 {[%emt 0:00:36]} 34. Qxe5 {[%emt 0:00:07]} f6 {[%emt 0:00:03]} 35. Qb8+ {[%emt 0:00:09]} Kh7 {[%emt 0:00:09]} 36. e4 {[%emt 0:01:30]} Bf7 {[%emt 0:00:58]} 37. Kh2 {[%emt 0:00:35]} Qe6 {[%emt 0:01:08]} 38. Qc7 {[%emt 0:00:22]} Qxb3 {[%emt 0:00:19]} 39. Qxa5 {[%emt 0:00:02]} Qa2 {[%emt 0:00:27]} 40. Qa7 {[%emt 0:01:08]} Kg8 {[%emt 0:00:38]} 41. e5 {[%emt 0:05:57]} f5 {[%emt 0:15:05]} 42. a5 {[%emt 0:00:55]} Be6 {[%emt 0:01:19]} 43. a6 {[%emt 0:02:41]} Kh7 {[%emt 0:00:21]} 44. Qb6 {[%emt 0:10:40]} Bd5 {[%emt 0:00:27]} 45. Kh1 {[%emt 0:02:46]} Qe2 {[%emt 0:03:57]} 46. Qc5 {[%emt 0:05:01]} Bxf3 {[%emt 0:05:23]} 47. gxf3 {[%emt 0:00:24]} Qxf3+ {[%emt 0:00:08]} 48. Kh2 {[%emt 0:00:48]} Qe2+ {[%emt 0:00:35]} 49. Bf2 {[%emt 0:00:44]} Qxa6 {[%emt 0:00:02]} 50. Qd5 {[%emt 0:00:33]} Qe2 {[%emt 0:02:43]} 51. Kg2 {[%emt 0:01:39]} f4 {[%emt 0:00:32]} 52. e6 {[%emt 0:00:46]} Kg6 {[%emt 0:01:06]} 53. h4 {[%emt 0:01:50]} h5 {[%emt 0:04:43]} 54. Qg5+ {[%emt 0:00:50]} Kh7 {[%emt 0:00:01]} 55. Qf5+ {[%emt 0:01:09]} Kh8 {[%emt 0:00:19]} 56. Kg1 {[%emt 0:00:55]} Qd1+ {[%emt 0:00:23]} 57. Kh2 {[%emt 0:00:10]} Qf3 {[%emt 0:01:17]} 58. Qc2 {[%emt 0:00:45]} Kg8 {[%emt 0:00:06]} 59. Qc8+ {[%emt 0:00:45]} Kh7 {[%emt 0:00:01]} 60. Qc2+ {[%emt 0:00:08]} Kg8 {[%emt 0:00:02]} 61. e7 {[%emt 0:01:05]} Kf7 {[%emt 0:00:08]} 62. Qc5 {[%emt 0:00:28]} Qe2 {[%emt 0:01:12]} 63. Qf5+ {[%emt 0:00:26]} Kxe7 {[%emt 0:00:05]} 64. Qxf4 {[%emt 0:00:01]} Qd1 {[%emt 0:01:16]} 65. Kg3 {[%emt 0:00:18]} Qb3+ {[%emt 0:01:25]} 66. Qe3+ {[%emt 0:00:01]} Qe6 {[%emt 0:00:27]} 67. Kf4 {[%emt 0:00:09]} Qxe3+ {[%emt 0:00:12]} 68. Bxe3 {[%emt 0:00:02]} Kf6 {[%emt 0:00:19]} 69. Bd4+ {[%emt 0:00:11]} Kg6 {[%emt 0:00:05]} 70. Bc3 {[%emt 0:00:10]} 1-0